Cogmind - Beta 10.1 @@@ ROGUE MODE // 2020.10.05 @ 16:44:27 Player: derk Result: Escaped! Performance ------------- Evolutions (9) 4500 Regions Visited (25) 5000 Robots Destroyed (191) 955 Value Destroyed (8399) 8399 Prototype IDs (76) 1520 Alien Tech Used (2) 400 Bonus (6934) 6934 TOTAL SCORE: 27708 Bonus ------- High Alert Combat Kills 253 Follower Combat Kills 851 Entered Garrisons 800 Used RIF Installer 2000 Aligned with FarCom 300 Met Zhirov 300 Win 3000 Friendly Fire -570 Cogmind --------- Core Integrity 1578/1600 Matter 36/300 Energy 234/240 System Corruption 0% Temperature Cool (280) Movement Flying (25) Location To Epsilon Eridani Parts ------- > --- POWER (2) -------- Micro Fission Core Light Antimatter Reactor > --- PROPULSION (5) --- Xenon Bombardment Thruster Improved Cesium-ion Thruster Cooled Nuclear Pulse Thruster Cooled Nuclear Pulse Thruster Q-thruster > --- UTILITY (16) ----- Lightpack 2.0 Gravity Neutralizing Apparatus Advanced Signal Interpreter Advanced Targeting Computer Advanced Targeting Computer Improved Melee Analysis Suite Improved Armor Integrity Analyzer Improved Utility Shielding Layered Light Armor Plating Hacking Suite Advanced Hacking Suite Advanced Hacking Suite System Shield Relay Coupler [NC] (8) > --- WEAPON (2) ------- Enhanced Nova Cannon > --- INVENTORY (24) --- Light Quantum Reactor Light Quantum Reactor Combat Airjet Combat Airjet Cooled Gravmag System Improved Linear Gravjet Impulse Thruster Array Large Storage Unit Energy Well (500) Energy Well (500) Improved Matter Compressor (0) Layered Heavy Armor Plating Advanced Variable Charge Gun Enhanced Quantum Rifle Heavy Neutron Cannon Improved Remote Datajack Peak State ------------ > --- POWER ------------ Micro Fission Core Light Quantum Reactor > --- PROPULSION ------- Improved Cesium-ion Thruster Cooled Nuclear Pulse Thruster Cooled Nuclear Pulse Thruster Impulse Thruster Array > --- UTILITY ---------- Lightpack 2.0 Improved Matter Compressor Gravity Neutralizing Apparatus Advanced Signal Interpreter Advanced Targeting Computer Advanced Targeting Computer Improved Armor Integrity Analyzer Improved Utility Shielding Layered Light Armor Plating Hacking Suite Advanced Hacking Suite Advanced Hacking Suite System Shield Relay Coupler [NC] > --- WEAPON ----------- Enhanced Nova Cannon Advanced Remote Datajack > --- INVENTORY -------- Light Antimatter Reactor Light Quantum Reactor Combat Airjet Combat Airjet Cooled Gravmag System Improved Linear Gravjet Xenon Bombardment Thruster Field Propulsion Array Q-thruster Large Storage Unit High-capacity Storage Unit Energy Well Energy Well Layered Heavy Armor Plating Advanced Component Analysis Suite Advanced Variable Charge Gun Enhanced Quantum Rifle Heavy Neutron Cannon Improved Remote Datajack [Rating: 152] Favorites ----------- Power Micro Fission Core Engine Improved Deuterium Engine Power Core Micro Fission Core Reactor Light Antimatter Reactor Propulsion Combat Airjet Treads Light Treads Leg Aluminum Leg Wheel Wheel Hover Unit Combat Airjet Flight Unit Improved Cesium-ion Thruster Utility Lightpack 2.0 Device Gravity Neutralizing Apparatus Storage Lightpack 2.0 Processor Advanced Targeting Computer Hackware Relay Coupler [NC] Protection Improved Light Armor Plating Weapon Remote Datajack Energy Gun Precision Beam Rifle Energy Cannon Improved EM Pulse Cannon Ballistic Gun Light Assault Rifle Ballistic Cannon Heavy Gauss Cannon Launcher Grenade Launcher Special Weapon Remote Datajack Slashing Weapon Chainsword Build | -11 -10 -10 -10 -9 -8 -8 -7 -7 -7 -7 -7 -7 -6 -6 -6 -6 -5 -4 -4 -4 -4 -3 -3 -2 -1 ------- Run | Scr Mat Min Exi Min Mat Gar Fac Was Fac Gar Fac Gar Fac Was Fac Gar Fac Fac Upp Upp Zhi Pro Res Res Acc Slots Evolved 18 | . . . . . 4 . 2 . . . . . 2 . . . 2 2 . . . . 2 2 2 Power 1 | . . . . . . . . . . . . . . . . . 1 . . . . . . . . Propulsion 3 | . . . . . . . 1 . . . . . . . . . 1 . . . . . . . 1 Utility 14 | . . . . . 4 . 1 . . . . . 2 . . . . 2 . . . . 2 2 1 Weapon . | . . . . . . . . . . . . . . . . . . . . . . . . . . Parts Attached 457 | 7 3 4 2 12 17 16 12 6 35 25 20 12 35 1 28 42 17 11 24 7 4 15 51 43 8 Power 41 | 1 . 1 . 2 . . 2 . 3 1 2 1 4 . 4 3 2 . 5 . . . 3 6 1 Engine 17 | 1 . 1 . 2 . . 2 . 3 1 2 . 3 . . 2 . . . . . . . . . Core 15 | . . . . . . . . . . . . 1 1 . 4 1 2 . 3 . . . 2 1 . Reactor 9 | . . . . . . . . . . . . . . . . . . . 2 . . . 1 5 1 Propulsion 84 | 2 . 1 . 5 1 3 4 . 11 3 . . 3 . 9 7 4 . 1 . . 3 16 8 3 Treads 12 | 2 . . . 2 1 3 . . 2 1 . . . . . . . . . . . . 1 . . Leg 1 | . . . . 1 . . . . . . . . . . . . . . . . . . . . . Wheel 4 | . . 1 . 2 . . . . . . . . . . . . . . . . . . 1 . . Hover 34 | . . . . . . . 4 . 8 2 . . 3 . 3 4 1 . . . . 3 3 3 . Flight 33 | . . . . . . . . . 1 . . . . . 6 3 3 . 1 . . . 11 5 3 Utility 193 | 2 2 . 2 . 13 9 5 4 3 9 7 4 17 . 8 17 10 9 8 1 3 8 25 23 4 Device 66 | . . . . . 6 4 2 3 1 1 1 . 7 . 1 2 3 8 5 1 . 7 9 5 . Storage 36 | 2 2 . 2 . 3 1 1 . . 1 . . . . . 3 . . . . 1 . 11 7 2 Processor 14 | . . . . . 2 . . . . . 1 . 2 . 2 . . 1 . . . . 2 3 1 Hackware 37 | . . . . . . . 1 1 . 3 2 4 6 . 1 6 6 . 1 . 1 . . 5 . Protection 40 | . . . . . 2 4 1 . 2 4 3 . 2 . 4 6 1 . 2 . 1 1 3 3 1 Artifact . | . . . . . . . . . . . . . . . . . . . . . . . . . . Weapon 139 | 2 1 2 . 5 3 4 1 2 18 12 11 7 11 1 7 15 1 2 10 6 1 4 7 6 . Energy Gun 23 | 1 . . . 2 3 2 . . . . . . 2 . 1 1 . . 4 . . 1 3 3 . Energy Cannon 42 | . . . . 2 . . . 1 6 4 4 3 4 . 1 8 . 1 1 5 . 1 . 1 . Ballistic Gun 16 | 1 1 1 . 1 . . 1 . 3 2 3 2 1 . . . . . . . . . . . . Ballistic Cannon 4 | . . . . . . . . . 2 . . . . . . . . . . . . . 2 . . Launcher 21 | . . 1 . . . 1 . . 2 2 . 1 . . 1 4 . . 4 . 1 2 2 . . Special Weapon 20 | . . . . . . 1 . . . 3 3 1 2 1 2 1 1 1 1 1 . . . 2 . Impact Weapon . | . . . . . . . . . . . . . . . . . . . . . . . . . . Slashing Weapon 13 | . . . . . . . . 1 5 1 1 . 2 . 2 1 . . . . . . . . . Piercing Weapon . | . . . . . . . . . . . . . . . . . . . . . . . . . . Special Melee Weapon . | . . . . . . . . . . . . . . . . . . . . . . . . . . Unidentified Prototypes 19 | . . . . . 2 . . . 3 . . . 4 . . . 1 . . . 3 . 3 3 . Parts Lost 56 | . 1 3 . 8 . 4 . . 2 2 . 2 . . . 4 2 1 3 . . 4 9 10 1 Power 12 | . . 1 . 1 . . . . 1 . . 1 . . . . 1 1 1 . . 2 . 3 . Propulsion 5 | . . 1 . 3 . . . . . . . . . . . . . . . . . . . 1 . Utility 21 | . . . . . . 3 . . . 1 . . . . . 4 1 . . . . 1 6 5 . Weapon 18 | . 1 1 . 4 . 1 . . 1 1 . 1 . . . . . . 2 . . 1 3 1 1 Highest Loss Streak 7 | . 1 2 . 5 . 2 . . 2 2 . 2 . . . 2 1 1 3 . . 3 5 7 1 Average Slot Usage (%) 91 | . 100 99 100 98 88 89 91 92 91 86 91 90 92 93 92 96 92 88 91 89 90 87 84 74 90 Engine 5 | . 14 13 14 13 9 9 7 7 6 6 7 4 . . . 4 4 . . . . . . . . Core 2 | . . . . . . . . . . . . 2 5 6 6 1 5 10 6 10 10 5 4 2 4 Treads 5 | . 28 26 14 10 18 18 . . . 4 . . . . . . . . . . . . . . . Hover 10 | . . . . . . . 22 23 22 13 23 23 20 20 3 18 . . . . . 6 6 . . Flight 4 | . . . . . . . . . . . . . . . 16 1 23 21 21 21 21 14 10 12 19 Device 4 | . . . . . 16 11 7 7 1 . . . 2 6 1 5 1 5 6 4 5 13 14 7 4 Storage 13 | . 28 28 28 28 9 10 15 15 15 15 15 15 13 13 7 9 5 5 5 5 5 5 10 7 4 Processor 6 | . . . . . 8 9 7 7 7 2 6 7 6 6 11 6 5 10 10 10 6 5 9 15 18 Hackware 12 | . . . . . . . 6 15 15 14 14 14 22 20 25 23 25 26 23 21 24 17 12 8 20 Protection 6 | . . . . . 8 13 7 . 5 12 7 7 6 6 5 10 4 . 6 10 9 10 3 4 8 Energy Gun 3 | . 4 . . 10 14 16 . . . . . . 1 . . . . . 2 2 . 1 3 1 . Energy Cannon 2 | . . . . 4 3 . . 4 5 5 3 5 2 6 1 4 . . . . . . . 1 4 Ballistic Gun 2 | . 23 17 14 3 . . 6 . . 1 2 . . . . . . . . . . . . . . Launcher 1 | . . 10 14 9 . . . . . . . . . . . . . . 2 . 2 1 . . . Special Weapon 2 | . . . . . . . 7 7 1 4 1 6 4 6 5 5 5 4 2 3 5 5 2 3 3 Slashing Weapon 1 | . . . . . . . . 2 4 1 6 . 4 . 4 . 5 5 . . . . . . . Naked Turns . | . . . . . . . . . . . . . . . . . . . . . . . . . . Heaviest Build 130 | 17 41 41 73 77 103 130 130 59 69 73 73 69 73 71 66 79 31 27 44 33 33 40 90 82 53 Greatest Support 85 | 40 40 40 10 40 40 40 66 66 70 70 66 66 78 78 78 66 33 33 46 34 34 61 85 61 65 Greatest Overweight (x) 7 | 2 1 4 7 7 2 3 3 . 1 1 1 1 1 . . 1 . . 1 . . . 1 1 . Average Overweight (x) . | . . . 4 5 1 2 . . . . . . . . . . . . . . . . . . . Largest Inventory Capacity 60 | 8 16 16 20 20 60 32 52 32 32 32 32 32 32 32 32 32 24 24 24 24 24 24 38 38 38 Average Capacity 25 | 5 15 16 16 20 25 25 32 32 32 32 32 32 32 32 25 14 24 24 24 24 24 24 25 24 24 Most Carried 32 | 8 14 16 19 20 24 32 32 32 32 32 32 32 32 31 32 24 24 23 24 22 24 24 23 24 21 Average Carried 23 | 4 9 14 16 19 22 23 29 31 30 31 31 31 31 31 24 13 22 21 22 21 23 19 18 22 18 Final Capacity 32 | 8 16 16 20 20 24 32 32 32 32 32 32 32 32 32 24 24 24 24 24 24 24 24 30 24 24 Final Carried 32 | 8 14 14 19 20 24 32 32 32 32 32 32 32 31 31 24 24 21 21 22 22 24 17 22 22 18 Class Distribution -------------------- 31% | Hauler-Mutant 21% | Bothacker-Mutant 14% | Hacker-Sprinter 12% | Mutant 6% | Scavenger-Mutant 6% | Hauler-Sprinter 4% | Hacker-Mutant Dominant Class ---------------- Mutant | -10/Materials Mutant | -10/Mines Mutant | -10/Exiles Hauler-Mutant | -9/Mines Hauler-Mutant | -8/Materials Hauler-Mutant | -8/Garrison Scavenger-Mutant | -7/Factory Hauler-Mutant | -7/Waste Hauler-Mutant | -7/Factory Bothacker-Mutant | -7/Garrison Bothacker-Mutant | -7/Factory Bothacker-Mutant | -7/Garrison Bothacker-Mutant | -6/Factory Hauler-Mutant | -6/Waste Hacker-Sprinter | -6/Factory Scavenger-Mutant | -6/Garrison Hacker-Sprinter | -5/Factory Hacker-Sprinter | -4/Factory Hacker-Sprinter | -4/Upper Caves Hacker-Sprinter | -4/Upper Caves Hacker-Sprinter | -4/Zhirov Hacker-Mutant | -3/Proximity Caves Hacker-Mutant | -3/Research Hauler-Sprinter | -2/Research Hacker-Sprinter | -1/Access Resources | -11 -10 -10 -10 -9 -8 -8 -7 -7 -7 -7 -7 -7 -6 -6 -6 -6 -5 -4 -4 -4 -4 -3 -3 -2 -1 ----------- Run | Scr Mat Min Exi Min Mat Gar Fac Was Fac Gar Fac Gar Fac Was Fac Gar Fac Fac Upp Upp Zhi Pro Res Res Acc Matter Collected 7832 | 276 124 369 . 268 170 185 62 162 482 410 275 277 723 . 558 1040 278 . 465 70 365 107 847 274 45 Remotely . | . . . . . . . . . . . . . . . . . . . . . . . . . . Salvage Created 8607 | 66 285 50 . 130 673 922 62 924 564 917 546 294 546 . 394 509 185 . 495 . 188 148 451 213 45 Parts 368 | 4 16 7 . 3 29 47 2 13 31 37 29 13 24 . 13 18 12 . 20 . . 7 25 16 2 Haulers Intercepted 2 | . . . . . 1 . . . . . 1 . . . . . . . . . . . . . . Recyclers Shooed 3 | . . . . . . . . . . . . . . . . . . . . . . . 3 . . Parts Field Recycled . | . . . . . . . . . . . . . . . . . . . . . . . . . . Retrieved Matter . | . . . . . . . . . . . . . . . . . . . . . . . . . . Parts Self-Destructed 23 | . . . . . . . . . . . . . . . . . . . 16 3 . 4 . . . Prevented 5 | . . . . . . . . . . . . . . . . . . . 5 . . . . . . Kills | -11 -10 -10 -10 -9 -8 -8 -7 -7 -7 -7 -7 -7 -6 -6 -6 -6 -5 -4 -4 -4 -4 -3 -3 -2 -1 ------- Run | Scr Mat Min Exi Min Mat Gar Fac Was Fac Gar Fac Gar Fac Was Fac Gar Fac Fac Upp Upp Zhi Pro Res Res Acc Combat Hostiles Destroyed 160 | . 6 10 . 16 11 20 1 . 8 16 9 7 7 . 4 15 2 . 8 . . 8 8 4 . Melee 3 | . . . . . . . . . . 1 . . . . . . 2 . . . . . . . . Guns 57 | . 6 . . 2 7 17 1 . 1 4 3 2 . . . . . . 3 . . 1 6 4 . Cannons 42 | . . . . 3 3 . . . 7 8 5 5 4 . 1 6 . . . . . . . . . AOE 49 | . . 10 . 11 . 3 . . . . . . . . 3 8 . . 5 . . 7 2 . . Classes Destroyed 15 | 1 3 . . 4 3 1 . . 1 . . . . . . 1 . . 1 . . . . . . Worker 5 | . . . . 1 1 . . . 1 . . . . . . . . . . . . . . . 2 Tunneler 1 | . . . . 1 . . . . . . . . . . . . . . . . . . . . . Hauler 2 | . . . . . 1 . . . . . 1 . . . . . . . . . . . . . . Recycler 7 | 1 1 . . . . . . . 2 . . . 1 . 2 . . . . . . . . . . Minesweeper 1 | . . . . . . . . . . . . . . . . . . . 1 . . . . . . Operator 2 | . . . . . 1 . . . . . . . . . . . 1 . . . . . . . . Watcher 11 | . 1 . . . 1 . . . 2 . . . 1 . . . 2 . . . . . 2 2 . Swarmer 61 | . 3 9 . . . 7 . . 3 5 . 3 . . 3 8 . . 5 . . 7 4 4 . Grunt 53 | . 3 1 . . 9 11 . . . 9 8 2 3 . . 3 2 . 2 . . . . . . Duelist 3 | . . . . . 1 . . . . . . . . . . 1 . . . . . 1 . . . Sentry 14 | . . . . 1 1 1 1 . 3 4 . 1 1 . . . . . . . . . 1 . . Hunter 6 | . . . . . . 1 . . . . . 1 . . 1 2 . . 1 . . . . . . Programmer 9 | . . . . . . . . . 2 . 1 . 3 . . . . . . . . . 3 . . Behemoth 1 | . . . . . . . . . . . . . . . . 1 . . . . . . . . . Assembled 15 | . . . . 15 . . . . . . . . . . . . . . . . . . . . . Best Kill Streak 16 | 1 4 3 . 16 3 4 1 . 5 4 3 2 3 . 3 4 1 . 5 . . 5 4 4 1 Combat Bots Only 15 | . 4 3 . 15 3 4 1 . 4 4 3 2 2 . 3 4 1 . 5 . . 5 4 4 . Max Kills in Single Turn 4 | 1 1 2 . 4 1 2 1 . 2 1 1 1 1 . 2 2 1 . 3 . . 2 1 1 1 Gunslinging . | . . . . . . . . . . . . . . . . . . . . . . . . . . Exploded 4 | . . 2 . 4 . 2 . . . . . . . . 2 2 . . 3 . . 2 1 . . Melee 1 | . . . . . . . . . . 1 . . . . . . 1 . . . . . . . . Uniques/NPCs Destroyed . | . . . . . . . . . . . . . . . . . . . . . . . . . . Combat | -11 -10 -10 -10 -9 -8 -8 -7 -7 -7 -7 -7 -7 -6 -6 -6 -6 -5 -4 -4 -4 -4 -3 -3 -2 -1 -------- Run | Scr Mat Min Exi Min Mat Gar Fac Was Fac Gar Fac Gar Fac Was Fac Gar Fac Fac Upp Upp Zhi Pro Res Res Acc Damage Taken 11673 | . 323 485 . 590 310 970 470 . 740 977 412 402 535 . 139 967 177 197 332 66 . 488 1315 1714 64 Core 1635 | . 61 69 . 99 68 140 13 . 88 81 95 56 73 . 34 110 16 48 71 . . 24 219 248 22 Absorbed by Shields 648 | . . . . . 120 79 . . . . 28 . . . . . . 61 5 . . 49 306 . . Core Remaining (%) 73 | 100 . . . 8 . 62 . . . . . 52 . . . 74 98 . . . . 87 75 82 98 Volleys Fired 826 | 2 27 21 . 25 45 65 11 15 33 91 37 60 48 3 17 69 10 3 31 33 7 21 62 64 26 Largest 2 | 2 2 2 . 2 2 2 1 1 2 1 1 1 1 1 1 1 1 1 2 1 1 1 2 1 1 Hottest 240 | 70 70 40 . 118 122 122 28 69 138 69 69 69 90 30 90 90 30 75 127 110 39 110 136 240 120 Shots Fired 978 | 4 54 22 . 32 89 123 11 15 41 91 37 60 48 3 17 69 10 3 32 33 7 21 66 64 26 Gun 432 | 4 54 7 . 15 64 120 11 . 7 16 13 7 16 . . . . . 13 . . 14 42 29 . Cannon 340 | . . . . 9 25 . . 15 34 55 17 29 15 . 9 32 . 3 . 33 . 1 19 21 23 Launcher 84 | . . 15 . 8 . 3 . . . 2 . 3 . . 3 19 . . 17 . 3 6 5 . . Special 122 | . . . . . . . . . . 18 7 21 17 3 5 18 10 . 2 . 4 . . 14 3 Kinetic 140 | 2 45 7 . 5 . . 11 . 26 16 13 7 . . . . . . . . . . 4 4 . Thermal 428 | 2 9 . . 12 89 120 . . . . . . 11 . 5 15 . . 13 33 . 15 46 35 23 Explosive 58 | . . 15 . 8 . 3 . . . . . . . . 3 18 . . 5 . . 6 . . . Electromagnetic 230 | . . . . 7 . . . 15 15 57 17 32 20 . 4 18 . 3 12 . 3 . 16 11 . Robot Hit Streak 36 | 4 11 8 . 7 23 27 34 18 19 23 9 10 12 5 6 24 30 33 36 . 3 5 11 9 5 Robot Miss Streak 6 | . 3 1 . 2 4 2 1 . 3 5 5 6 1 . 3 2 . . 4 . 1 5 3 5 1 Penetration Max 1 | . . . . . . . . . 1 . . . . . . . . . . . . . . . . Secondary Targets 5 | . . . . . . 5 . . . . . . . . . . . . . . . . . . . Max Gunslinging Chain 1 | . . . . . . 1 . . . . . . . . . . . . . . . . . . . Shots Hit Robots 644 | 4 33 11 . 19 65 99 10 15 31 65 32 31 40 3 14 45 23 4 17 . 5 9 36 26 7 Core Hits 338 | 2 13 14 . 31 25 44 3 2 17 33 24 10 11 . 9 22 6 . 20 . 5 15 19 11 2 Critical Hits 12 | . . . . . . . . . 4 1 . . . . . 1 . . 1 . . . 5 . . Critical Kills 9 | . . . . . . . . . 3 1 . . . . . 1 . . 1 . . . 3 . . Critical Parts Destroyed 2 | . . . . . . . . . . . . . . . . . . . . . . . 2 . . Melee Attacks 93 | . . . . . . . . . 15 2 13 . 9 . 16 . 26 12 . . . . . . . Impact . | . . . . . . . . . . . . . . . . . . . . . . . . . . Slashing 93 | . . . . . . . . . 15 2 13 . 9 . 16 . 26 12 . . . . . . . Piercing . | . . . . . . . . . . . . . . . . . . . . . . . . . . Sneak Attacks 6 | . . . . . . . . . . . . . 1 . 2 . 3 . . . . . . . . Combat Hostiles 2 | . . . . . . . . . . . . . . . . . 2 . . . . . . . . Follow-up Attacks . | . . . . . . . . . . . . . . . . . . . . . . . . . . Damage Inflicted 18730 | 52 322 1238 . 959 1176 2160 197 372 1007 1255 777 453 964 . 689 1580 845 126 970 . 294 930 1459 655 250 Guns 6378 | 52 322 67 . 130 808 1808 197 . 88 254 320 49 355 . . . . . 235 . . 209 998 486 . Cannons 5689 | . . . . 123 368 . . 372 919 964 457 404 480 . 98 802 . 82 . . . . 201 169 250 Explosions 5298 | . . 1171 . 706 . 352 . . . . . . . . 281 778 . . 735 . 294 721 260 . . Melee 1273 | . . . . . . . . . . 37 . . 129 . 310 . 753 44 . . . . . . . Ramming 92 | . . . . . . . . . . . . . . . . . 92 . . . . . . . . Kinetic 1824 | 27 262 67 . 27 . . 197 . 539 254 320 49 . . . . . . . . . . . 82 . Thermal 6215 | 25 60 93 . 190 1176 1808 . . . . . . 378 . . 396 . . 235 . . 209 986 409 250 Explosive 4276 | . . 1078 . 665 . 352 . . . . . . . . 281 778 . . 401 . . 721 . . . Electromagnetic 5050 | . . . . 77 . . . 372 468 964 457 404 457 . 98 406 . 82 334 . 294 . 473 164 . Impact . | . . . . . . . . . . . . . . . . . . . . . . . . . . Slashing 1273 | . . . . . . . . . . 37 . . 129 . 310 . 753 44 . . . . . . . Piercing . | . . . . . . . . . . . . . . . . . . . . . . . . . . Highest Corruption 6 | . . . . . . . . . . . 2 2 4 4 4 4 5 . . . . . 6 3 . Average Corruption 3 | . . . . . . . . . . . 1 2 3 4 4 4 5 . . . . . 5 2 . Corruption Purged . | . . . . . . . . . . . . . . . . . . . . . . . . . . Effects 97 | . . . . . . . . . . . 8 9 4 2 13 35 1 . . . . . 21 4 . Message Errors 21 | . . . . . . . . . . . 1 4 . 1 3 10 . . . . . . 2 . . Matter Fused 23 | . . . . . . . . . . . . . 2 1 2 11 1 . . . . . 5 1 . Heat Flow Errors 10 | . . . . . . . . . . . 2 . 1 . . 4 . . . . . . 2 1 . Energy Discharges 13 | . . . . . . . . . . . 1 2 1 . 3 4 . . . . . . 2 . . Parts Rejected 2 | . . . . . . . . . . . . . . . 1 . . . . . . . 1 . . Data Loss (minor) 13 | . . . . . . . . . . . 3 1 . . 3 2 . . . . . . 3 1 . Data Loss (major) 3 | . . . . . . . . . . . . . . . . . . . . . . . 3 . . Misfires 2 | . . . . . . . . . . . . . . . . . . . . . . . 2 . . Targeting Errors 9 | . . . . . . . . . . . 1 2 . . 1 4 . . . . . . . 1 . Weapon Failures 1 | . . . . . . . . . . . . . . . . . . . . . . . 1 . . Overload Shots 3 | . . . . . . . . . . . . . . . . . . . . . . . . 3 . Overflow Damage 663 | . . 82 . 36 . 38 . . 29 . . 2 89 . 45 62 42 . 48 . 113 68 . . 9 Projectiles 40 | . . . . . . . . . 29 . . 2 . . . . . . . . . . . . 9 Explosions 455 | . . 82 . 36 . 38 . . . . . . . . 8 62 . . 48 . 113 68 . . . Melee 168 | . . . . . . . . . . . . . 89 . 37 . 42 . . . . . . . . Knockbacks 1 | . . . . . . . . . . . . . . . . . . . . . . . . 1 . Impact . | . . . . . . . . . . . . . . . . . . . . . . . . . . Kinetic 1 | . . . . . . . . . . . . . . . . . . . . . . . . 1 . Secondary . | . . . . . . . . . . . . . . . . . . . . . . . . . . Self-Inflicted Damage 619 | . . 177 . 101 . 29 . . . . . . . . . 179 92 . 14 . . . 27 . . Shots 25 | . . 9 . 4 . 2 . . . . . . . . . 6 . . 2 . . . 2 . . Rammed . | . . . . . . . . . . . . . . . . . . . . . . . . . . Targets Rammed . | . . . . . . . . . . . . . . . . . . . . . . . . . . Kicked . | . . . . . . . . . . . . . . . . . . . . . . . . . . Crushed . | . . . . . . . . . . . . . . . . . . . . . . . . . . Highest Temperature 351 | 18 75 22 . 144 120 276 7 28 96 258 219 89 164 6 72 257 43 108 262 132 . 264 202 351 301 Average Temperature 67 | 10 28 13 . 55 42 73 7 14 25 85 72 24 34 4 31 75 8 52 90 46 . 105 64 77 126 Received Heat Transfer 1959 | . 126 63 . 63 156 372 84 . 12 402 171 42 117 . . 129 18 42 21 . . 63 24 54 . Effects 5 | . . . . . . . . . . . . . . . . . . . . . . 3 . 1 1 Shutdowns 1 | . . . . . . . . . . . . . . . . . . . . . . . . 1 . Interference 4 | . . . . . . . . . . . . . . . . . . . . . . 3 . . 1 Siege Activations . | . . . . . . . . . . . . . . . . . . . . . . . . . . Robots Corrupted 12 | . . . . . . . . 2 . 3 1 . 3 . . 1 . . 1 . . . 1 . . Combat Hostiles 10 | . . . . . . . . 2 . 3 1 . 3 . . 1 . . . . . . . . . Parts Fried 36 | . . . . 2 . . . 1 3 7 4 3 3 . 2 4 . . 1 . . . 5 1 . Impact Corruptions . | . . . . . . . . . . . . . . . . . . . . . . . . . . Robots Melted 1 | . . . . . 1 . . . . . . . . . . . . . . . . . . . . Combat Hostiles 1 | . . . . . 1 . . . . . . . . . . . . . . . . . . . . Parts Melted 15 | . . . . 3 5 4 . . . 1 . . 1 . . . . . . . . . . 1 . Heat Transferred 10427 | 74 185 100 . 383 2553 3663 . . . . . . 500 . . 550 . . 333 . . 296 1087 481 222 Parts Sabotaged . | . . . . . . . . . . . . . . . . . . . . . . . . . . Parts Stolen . | . . . . . . . . . . . . . . . . . . . . . . . . . . Parts Stripped . | . . . . . . . . . . . . . . . . . . . . . . . . . . Power Chain Reactions 2 | . . . . 1 . . . . . 1 . . . . . . . . . . . . . . . Missiles Intercepted . | . . . . . . . . . . . . . . . . . . . . . . . . . . Alert | -11 -10 -10 -10 -9 -8 -8 -7 -7 -7 -7 -7 -7 -6 -6 -6 -6 -5 -4 -4 -4 -4 -3 -3 -2 -1 ------- Run | Scr Mat Min Exi Min Mat Gar Fac Was Fac Gar Fac Gar Fac Was Fac Gar Fac Fac Upp Upp Zhi Pro Res Res Acc Peak Influence 795 | 5 165 272 . 32 247 692 434 151 175 795 541 329 187 40 147 483 268 145 . . . . 193 449 150 Initial 417 | . 3 14 . . 12 . 363 151 105 39 417 . 172 25 28 35 253 66 . . . . 87 51 45 Average 170 | 1 65 105 . 5 73 397 390 151 64 476 227 171 48 33 61 302 112 96 . . . . 105 155 70 Maximum Alert Level 3 | . . 1 . . 1 2 2 . . 3 2 1 . . . 2 1 . . . . . . 2 . Low Security (%) 70 | 100 100 80 . 100 97 18 . 100 100 20 53 52 100 100 100 24 71 100 . . . . 100 70 100 Level 1 14 | . . 19 . . 2 24 77 . . 14 24 47 . . . 39 28 . . . . . . 13 . Level 2 13 | . . . . . . 56 22 . . 53 21 . . . . 35 . . . . . . . 16 . Level 3 . | . . . . . . . . . . 12 . . . . . . . . . . . . . . . Level 4 . | . . . . . . . . . . . . . . . . . . . . . . . . . . Level 5 . | . . . . . . . . . . . . . . . . . . . . . . . . . . High Security . | . . . . . . . . . . . . . . . . . . . . . . . . . . Max Security . | . . . . . . . . . . . . . . . . . . . . . . . . . . Squads Dispatched 36 | . 3 . . . 3 . . . 6 . 4 . 4 . 3 . 3 1 . . . 1 2 5 1 Investigation 15 | . 2 . . . 2 . . . . . 3 . 1 . 2 . 2 . . . . . . 2 1 Extermination 11 | . . . . . . . . . 2 . 1 . 3 . . . . 1 . . . . 2 2 . Reinforcement 6 | . 1 . . . 1 . . . 1 . . . . . 1 . 1 . . . . . . 1 . Assault 1 | . . . . . . . . . . . . . . . . . . . . . . 1 . . . Garrison 3 | . . . . . . . . . 3 . . . . . . . . . . . . . . . . Intercept . | . . . . . . . . . . . . . . . . . . . . . . . . . . Construction Impeded 1 | . . . . . . . . . 1 . . . . . . . . . . . . . . . . Haulers Reinforced 1 | . . . . . . . . . . . . . . . . . 1 . . . . . . . . Stealth | -11 -10 -10 -10 -9 -8 -8 -7 -7 -7 -7 -7 -7 -6 -6 -6 -6 -5 -4 -4 -4 -4 -3 -3 -2 -1 --------- Run | Scr Mat Min Exi Min Mat Gar Fac Was Fac Gar Fac Gar Fac Was Fac Gar Fac Fac Upp Upp Zhi Pro Res Res Acc Distress Signals 9 | . 2 . . . 1 . . . . . . . 2 . . . 2 . . . . . . 1 1 Communications Jammed 42 | . . . . . . . . . . . . . 1 . . . . 1 . . . . 2 33 5 Distress Signals 42 | . . . . . . . . . . . . . 1 . . . . 1 . . . . 2 33 5 Times Spotted 391 | . 16 17 . 18 20 20 2 . 12 34 13 20 13 3 12 26 13 5 12 5 . 22 26 72 10 Peak Tracking Total 14 | . 8 5 . 11 3 4 1 . 3 4 3 4 2 1 5 4 4 4 5 5 . 7 9 14 7 Tactical Retreats 52 | . 2 2 . 1 2 2 . . . 4 3 1 1 . 3 2 3 . 1 1 . 8 4 10 2 Traps | -11 -10 -10 -10 -9 -8 -8 -7 -7 -7 -7 -7 -7 -6 -6 -6 -6 -5 -4 -4 -4 -4 -3 -3 -2 -1 ------- Run | Scr Mat Min Exi Min Mat Gar Fac Was Fac Gar Fac Gar Fac Was Fac Gar Fac Fac Upp Upp Zhi Pro Res Res Acc Traps Triggered 40 | . 2 . . . 1 2 1 . 1 10 1 7 2 . 1 5 1 1 . . . . 3 1 1 Indirectly . | . . . . . . . . . . . . . . . . . . . . . . . . . . Trap Hack Attempts . | . . . . . . . . . . . . . . . . . . . . . . . . . . Triggered . | . . . . . . . . . . . . . . . . . . . . . . . . . . Disarmed . | . . . . . . . . . . . . . . . . . . . . . . . . . . Reprogrammed . | . . . . . . . . . . . . . . . . . . . . . . . . . . Reused 3 | . . . . . . . . . . . . . . . . . . . . . . 3 . . . Traps Extracted . | . . . . . . . . . . . . . . . . . . . . . . . . . . Installed 4 | . . . . . . . . . . . . . . . . . . . . . . 4 . . . Triggered 5 | . . . . . . . . . . . . . . . . . . . 1 . . 3 1 . . Exploded 1 | . . . 1 . . . . . . . . . . . . . . . . . . . . . . Machines | -11 -10 -10 -10 -9 -8 -8 -7 -7 -7 -7 -7 -7 -6 -6 -6 -6 -5 -4 -4 -4 -4 -3 -3 -2 -1 ---------- Run | Scr Mat Min Exi Min Mat Gar Fac Was Fac Gar Fac Gar Fac Was Fac Gar Fac Fac Upp Upp Zhi Pro Res Res Acc Machines Disabled 21 | . . 1 . 1 . 1 . . 1 5 1 3 1 . . 4 . . . . 2 . . . 1 Max in Single Turn 2 | . . 1 . 1 . 1 . . 1 1 1 1 1 . . 1 . . . . 2 . . . 1 Garrison Access 1 | . . . . . . . . . . . . . . . . . . . . . . . 1 . . Garrison Relay 9 | . . . . . . 1 . . . 3 . 2 . . . 3 . . . . . . . . . Machines Sabotaged . | . . . . . . . . . . . . . . . . . . . . . . . . . . Garrisons Compromised . | . . . . . . . . . . . . . . . . . . . . . . . . . . Overloaded Fab Kills . | . . . . . . . . . . . . . . . . . . . . . . . . . . Fab Network Shutdowns 1 | . . . . . . . . . . . 1 . . . . . . . . . . . . . . Hacking | -11 -10 -10 -10 -9 -8 -8 -7 -7 -7 -7 -7 -7 -6 -6 -6 -6 -5 -4 -4 -4 -4 -3 -3 -2 -1 --------- Run | Scr Mat Min Exi Min Mat Gar Fac Was Fac Gar Fac Gar Fac Was Fac Gar Fac Fac Upp Upp Zhi Pro Res Res Acc Machines Accessed 102 | . 2 . 1 . 4 . 1 . 10 . 13 . 11 . 8 . 9 2 1 . 9 . 6 14 11 Terminals 54 | . 2 . . . 1 . 1 . 3 . 7 . 6 . 4 . 4 1 . . . . 5 9 11 Fabricators 11 | . . . . . . . . . 2 . 2 . 2 . 1 . 3 . . . . . . 1 . Repair Stations 8 | . . . . . 1 . . . 2 . 2 . 1 . 2 . . . . . . . . . . Recycling Units 6 | . . . . . . . . . 1 . . . 1 . . . 2 1 . . . . . 1 . Scanalyzers 5 | . . . . . 1 . . . 1 . 1 . 1 . . . . . . . . . . 1 . Garrison Access 7 | . . . . . 1 . . . 1 . 1 . . . 1 . . . . . . . 1 2 . Total Hacks 318 | . 7 . 1 . 14 . 4 . 27 . 37 . 44 . 29 . 25 5 1 . 48 . 14 30 32 Successful 221 | . 3 . 1 . 8 . 2 . 21 . 23 . 28 . 22 . 15 4 1 . 48 . 10 13 22 Failed 96 | . 4 . . . 6 . 2 . 6 . 14 . 15 . 7 . 10 1 . . . . 4 17 10 Catastrophic 13 | . 1 . . . 1 . . . 3 . . . 1 . . . 1 1 . . . . . 4 1 Database Lockouts 1 | . . . . . . . . . . . . . 1 . . . . . . . . . . . . Manual 99 | . 7 . 1 . 1 . 3 . 4 . 10 . 19 . 8 . 14 1 . . . . 3 10 18 Terminals 169 | . 7 . . . 3 . 4 . 7 . 21 . 31 . 17 . 12 2 . . . . 13 20 32 Fabricators 32 | . . . . . . . . . 8 . 6 . 4 . 2 . 10 . . . . . . 2 . Repair Stations 23 | . . . . . 3 . . . 8 . 5 . 1 . 6 . . . . . . . . . . Recycling Units 11 | . . . . . . . . . 1 . . . 2 . . . 3 3 . . . . . 2 . Scanalyzers 19 | . . . . . 6 . . . 2 . 3 . 6 . . . . . . . . . . 2 . Garrison Access 14 | . . . . . 2 . . . 1 . 2 . . . 4 . . . . . . . 1 4 . Terminal Hacks 118 | . 2 . 1 . 1 . 1 . 2 . 7 . 12 . 9 . 4 1 1 . 48 . 8 6 15 Record 36 | . . . . . . . . . . . . . . . . . . . . . 36 . . . . Part Schematic 11 | . 2 . . . . . . . . . . . 2 . 1 . 1 . . . 4 . 1 . . Robot Analysis 4 | . . . . . . . . . . . . . . . . . . . . . 4 . . . . Prototype ID Bank 7 | . . . . . . . . . . . . . . . 1 . . . . . 4 . 1 . 1 Open Door 5 | . . . . . . . . . . . . . . . . . . . 1 . . . . . 4 Level Access Points 4 | . . . . . . . . . . . . . . . . . . 1 . . . . 1 1 1 Branch Access Points 2 | . . . . . . . 1 . . . . . . . . . 1 . . . . . . . . Emergency Access Points 1 | . . . . . . . . . . . 1 . . . . . . . . . . . . . . Machine Index 3 | . . . . . . . . . . . . . . . 1 . . . . . . . 1 . 1 Terminal Index 4 | . . . . . . . . . . . . . 1 . 1 . . . . . . . 1 1 . Fabricator Index 5 | . . . . . . . . . 1 . 1 . 1 . . . 1 . . . . . . 1 . Garrison Index 2 | . . . . . . . . . . . . . . . 1 . . . . . . . 1 . . Unreport Threat 4 | . . . . . . . . . . . 1 . 1 . 1 . . . . . . . . . 1 Locate Traps 3 | . . . . . . . . . . . 1 . . . 1 . . . . . . . . 1 . Dispatch Records 1 | . . . . . . . . . . . . . 1 . . . . . . . . . . . . Recall Investigation 4 | . . . . . . . . . . . 2 . 1 . . . . . . . . . . 1 . Recall Extermination 1 | . . . . . . . . . . . . . 1 . . . . . . . . . . . . Hauler Manifests 4 | . . . . . 1 . . . . . . . 1 . 1 . . . . . . . . . 1 Registered Components 2 | . . . . . . . . . . . . . 1 . 1 . . . . . . . . . . Registered Prototypes 1 | . . . . . . . . . . . . . 1 . . . . . . . . . . . . Zone Layout 13 | . . . . . . . . . 1 . 1 . 1 . . . 1 . . . . . 2 1 6 EX-Prototype ID Bank 1 | . . . 1 . . . . . . . . . . . . . . . . . . . . . . Fabricator Hacks 23 | . . . . . . . . . 7 . 4 . 4 . 2 . 5 . . . . . . 1 . Network Status 1 | . . . . . . . . . 1 . . . . . . . . . . . . . . . . Load Schematic 11 | . . . . . . . . . 3 . 1 . 2 . 1 . 3 . . . . . . 1 . Build 11 | . . . . . . . . . 3 . 3 . 2 . 1 . 2 . . . . . . . . Repair Station Hacks 16 | . . . . . 2 . . . 7 . 3 . 1 . 3 . . . . . . . . . . Scan Component 9 | . . . . . 1 . . . 4 . 2 . . . 2 . . . . . . . . . . Repair 5 | . . . . . 1 . . . 3 . 1 . . . . . . . . . . . . . . Refit 2 | . . . . . . . . . . . . . 1 . 1 . . . . . . . . . . Recycling Unit Hacks 5 | . . . . . . . . . 1 . . . . . . . 1 3 . . . . . . . Report Inventory 2 | . . . . . . . . . . . . . . . . . 1 1 . . . . . . . Retrieve Components 3 | . . . . . . . . . 1 . . . . . . . . 2 . . . . . . . Scanalyzer 16 | . . . . . 4 . . . 2 . 2 . 6 . . . . . . . . . . 2 . Insert Component 8 | . . . . . 2 . . . 1 . 1 . 3 . . . . . . . . . . 1 . Analyze 8 | . . . . . 2 . . . 1 . 1 . 3 . . . . . . . . . . 1 . Garrison Access Hacks 7 | . . . . . 1 . . . 1 . 2 . . . 2 . . . . . . . 1 . . Unlock Access 4 | . . . . . 1 . . . 1 . 1 . . . 1 . . . . . . . . . . Seal Access 1 | . . . . . . . . . . . . . . . . . . . . . . . 1 . . Coupler Status 2 | . . . . . . . . . . . 1 . . . 1 . . . . . . . . . . Unauthorized Hacks 36 | . 1 . . . . . 1 . 1 . 5 . 5 . 6 . 5 . . . . . 1 4 7 Terminals 23 | . 1 . . . . . 1 . 1 . 5 . 3 . 3 . . . . . . . 1 1 7 Track 5 | . 1 . . . . . . . . . 1 . 1 . 1 . . . . . . . . . 1 Assimilate 1 | . . . . . . . . . . . 1 . . . . . . . . . . . . . . Botnet 13 | . . . . . . . 1 . 1 . 2 . 2 . 1 . . . . . . . 1 1 4 Disrupt 2 | . . . . . . . . . . . . . . . 1 . . . . . . . . . 1 Operators 2 | . . . . . . . . . . . 1 . . . . . . . . . . . . . 1 Fabricators 3 | . . . . . . . . . . . . . . . . . 3 . . . . . . . . Prioritize 1 | . . . . . . . . . . . . . . . . . 1 . . . . . . . . Siphon 2 | . . . . . . . . . . . . . . . . . 2 . . . . . . . . Repair Stations 1 | . . . . . . . . . . . . . . . 1 . . . . . . . . . . Mechanics 1 | . . . . . . . . . . . . . . . 1 . . . . . . . . . . Recycling Units 4 | . . . . . . . . . . . . . 2 . . . 2 . . . . . . . . Mask 1 | . . . . . . . . . . . . . 1 . . . . . . . . . . . . Tunnel 3 | . . . . . . . . . . . . . 1 . . . 2 . . . . . . . . Scanalyzers . | . . . . . . . . . . . . . . . . . . . . . . . . . . Garrison Access 5 | . . . . . . . . . . . . . . . 2 . . . . . . . . 3 . Redirect 1 | . . . . . . . . . . . . . . . . . . . . . . . . 1 . Reprogram 1 | . . . . . . . . . . . . . . . . . . . . . . . . 1 . Intercept 2 | . . . . . . . . . . . . . . . 1 . . . . . . . . 1 . Watchers 1 | . . . . . . . . . . . . . . . 1 . . . . . . . . . . Data Cores Recovered 1 | . . . . . . . . . . . . . . . . . 1 . . . . . . . . Used . | . . . . . . . . . . . . . . . . . . . . . . . . . . Hacking Detections 82 | . 2 . . . 4 . 1 . 8 . 13 . 9 . 8 . 7 2 . . . . 5 14 9 Full Trace Events 8 | . . . . . 1 . . . . . 2 . . . 2 . . . . . . . . 2 1 Feedback Events 1 | . . . . . . . . . . . . . . . . . . . . . . . . 1 . Corruption 1 | . . . . . . . . . . . . . . . . . . . . . . . . 1 . Feedback Blocked . | . . . . . . . . . . . . . . . . . . . . . . . . . . Robot Schematics Acquired . | . . . . . . . . . . . . . . . . . . . . . . . . . . Robots Built . | . . . . . . . . . . . . . . . . . . . . . . . . . . Matter . | . . . . . . . . . . . . . . . . . . . . . . . . . . Time . | . . . . . . . . . . . . . . . . . . . . . . . . . . Total Robot Build Rating . | . . . . . . . . . . . . . . . . . . . . . . . . . . Part Schematics Acquired 18 | . 2 . . . 2 . . . 1 . . . 5 . 1 . 1 . . . 4 . 1 1 . Parts Built 13 | . . . . . . . . . 6 . 1 . 3 . 1 . 2 . . . . . . . . Matter 1794 | . . . . . . . . . 570 . 212 . 442 . 252 . 318 . . . . . . . . Time 534 | . . . . . . . . . 141 . 53 . 114 . 67 . 159 . . . . . . . . Total Part Build Rating 66 | . . . . . . . . . 30 . 6 . 14 . 4 . 12 . . . . . . . . Parts Repaired 4 | . . . . . 1 . . . 2 . 1 . . . . . . . . . . . . . . Time 298 | . . . . . 100 . . . 170 . 28 . . . . . . . . . . . . . . Parts Recycled . | . . . . . . . . . . . . . . . . . . . . . . . . . . Recycled Matter . | . . . . . . . . . . . . . . . . . . . . . . . . . . Retrieved Matter . | . . . . . . . . . . . . . . . . . . . . . . . . . . Retrieved Components 3 | . . . . . . . . . 1 . . . . . . . . 2 . . . . . . . Parts Scanalyzed 7 | . . . . . 2 . . . 1 . 1 . 2 . . . . . . . . . . 1 . Part Schematics Acquired 7 | . . . . . 2 . . . 1 . . . 3 . . . . . . . . . . 1 . Parts Damaged 1 | . . . . . 1 . . . . . . . . . . . . . . . . . . . . Bothacking | -11 -10 -10 -10 -9 -8 -8 -7 -7 -7 -7 -7 -7 -6 -6 -6 -6 -5 -4 -4 -4 -4 -3 -3 -2 -1 ------------ Run | Scr Mat Min Exi Min Mat Gar Fac Was Fac Gar Fac Gar Fac Was Fac Gar Fac Fac Upp Upp Zhi Pro Res Res Acc Used RIF Installer 4 | . . . . . . 1 . . . 1 . 1 . . . 1 . . . . . . . . . Coupler Efficiency 1 | . . . . . . . . . . 1 . . . . . . . . . . . . . . . Signal Jammer 1 | . . . . . . . . . . . . 1 . . . . . . . . . . . . . Autooverride 1 | . . . . . . . . . . . . . . . . 1 . . . . . . . . . Robots Hacked 64 | . . . . . . . . . . 9 1 13 8 3 2 12 4 . 2 . 3 . . 6 1 Non-combat 21 | . . . . . . . . . . . 1 . 8 . 2 . 3 . . . . . . 6 1 Combat 43 | . . . . . . . . . . 9 . 13 . 3 . 12 1 . 2 . 3 . . . . Autooverrided 1 | . . . . . . . . . . . . . . . . . 1 . . . . . . . . Robot Hacks Applied 88 | . . . . . . . . . . 12 6 13 13 3 2 13 10 . 2 . 3 . . 10 1 parse_system 7 | . . . . . . . . . . 2 . . 1 . . 1 . . . . 3 . . . . no_distress 1 | . . . . . . . . . . . . . . . . . 1 . . . . . . . . generate_anomaly 2 | . . . . . . . . . . . . . . . . . 2 . . . . . . . . find_chute 1 | . . . . . . . . . . . . . 1 . . . . . . . . . . . . map_walls 2 | . . . . . . . . . . . . . 1 . . . . . . . . . . 1 . drop_inventory 5 | . . . . . . . . . . . . . 2 . 1 . 1 . . . . . . 1 . find_recycling 1 | . . . . . . . . . . . . . 1 . . . . . . . . . . . . purge_threat 10 | . . . . . . . . . . . 4 . 1 . . . 2 . . . . . . 3 . disarm_traps 2 | . . . . . . . . . . . 1 . . . . . 1 . . . . . . . . block_reporting 7 | . . . . . . . . . . . 1 . 1 . . . 2 . . . . . . 3 . map_route 3 | . . . . . . . . . . . . . 1 . . . . . . . . . . 1 1 mark_security 1 | . . . . . . . . . . . . . 1 . . . . . . . . . . . . ignore_targets 3 | . . . . . . . . . . . . . . 3 . . . . . . . . . . . find_shortcuts 1 | . . . . . . . . . . 1 . . . . . . . . . . . . . . . scatter_targeting 1 | . . . . . . . . . . . . 1 . . . . . . . . . . . . . amplify_resonance 3 | . . . . . . . . . . . . 2 1 . . . . . . . . . . . . disable_weapons 4 | . . . . . . . . . . 3 . . . . . . . . 1 . . . . . . go_dormant 1 | . . . . . . . . . . . . 1 . . . . . . . . . . . . . overwrite_iff 11 | . . . . . . . . . . 2 . 2 . . . 7 . . . . . . . . . formatsys_low 4 | . . . . . . . . . . . . . 2 . 1 . 1 . . . . . . . . formatsys_high 18 | . . . . . . . . . . 4 . 7 . . . 5 . . 1 . . . . 1 . Relay Couplers Released 41 | . . . . . . 5 . . . 14 . 8 3 . . 11 . . . . . . . . . Machine Destruction 38 | . . . . . . 5 . . . 14 . 8 . . . 11 . . . . . . . . . Programmers 3 | . . . . . . . . . . . . . 3 . . . . . . . . . . . . Attached 24 | . . . . . . . . 1 . 3 2 4 3 . . 6 2 . 1 . . . . 2 . Robots Rewired . | . . . . . . . . . . . . . . . . . . . . . . . . . . Allies Hacked 1 | . . . . . . . . . . . . . . . . . . . . . . . . 1 . Hacks Repelled . | . . . . . . . . . . . . . . . . . . . . . . . . . . Allies | -11 -10 -10 -10 -9 -8 -8 -7 -7 -7 -7 -7 -7 -6 -6 -6 -6 -5 -4 -4 -4 -4 -3 -3 -2 -1 -------- Run | Scr Mat Min Exi Min Mat Gar Fac Was Fac Gar Fac Gar Fac Was Fac Gar Fac Fac Upp Upp Zhi Pro Res Res Acc Total Allies 42 | . . 3 . 1 . . . . . 6 . 9 2 . 1 12 2 . 1 . . . . 5 . Largest Group 5 | . . 3 . 1 1 . . . . 2 1 4 5 . 1 3 5 1 1 1 . . . 4 . Highest-Rated Group 232 | . . 40 . 31 31 . . . . 44 32 128 138 . 26 93 132 10 56 56 . . . 232 . Highest-Rated Ally 58 | . . 16 . 31 31 . . . . 32 32 32 32 . 26 32 32 10 56 56 . . . 58 . Total Orders 13 | . . . . . . . . . . . 1 . 4 . . 4 3 1 . . . . . . . STAY 7 | . . . . . . . . . . . 1 . 1 . . 2 2 1 . . . . . . . FOLLOW 4 | . . . . . . . . . . . . . 1 . . 2 1 . . . . . . . . AID 2 | . . . . . . . . . . . . . 2 . . . . . . . . . . . . Ally Attacks 195 | . . 30 . 4 9 . . . . 45 6 23 6 . . 32 13 . 8 1 . . . 18 . Total Damage 4563 | . . 316 . 66 187 . . . . 874 232 739 278 . . 520 413 . 286 30 . . . 622 . Kills 32 | . . 6 . 1 . . . . . 10 2 5 2 . . . 3 . 2 . . . . 1 . Allies Corrupted 1 | . . . . . . . . . . . . . . . . . . . . . . . . 1 . Allies Melted . | . . . . . . . . . . . . . . . . . . . . . . . . . . Intel | -11 -10 -10 -10 -9 -8 -8 -7 -7 -7 -7 -7 -7 -6 -6 -6 -6 -5 -4 -4 -4 -4 -3 -3 -2 -1 ------- Run | Scr Mat Min Exi Min Mat Gar Fac Was Fac Gar Fac Gar Fac Was Fac Gar Fac Fac Upp Upp Zhi Pro Res Res Acc Robot Analysis Total 4 | . . . . . . . . . . . . . . . . . . . . . 4 . . . . Derelict Logs Recovered 5 | . . 1 . 2 . . . . . . . . . . . . . . 1 1 . . . . . Drone Launches . | . . . . . . . . . . . . . . . . . . . . . . . . . . Drone Recoveries . | . . . . . . . . . . . . . . . . . . . . . . . . . . Exploration | -11 -10 -10 -10 -9 -8 -8 -7 -7 -7 -7 -7 -7 -6 -6 -6 -6 -5 -4 -4 -4 -4 -3 -3 -2 -1 ------------- Run | Scr Mat Min Exi Min Mat Gar Fac Was Fac Gar Fac Gar Fac Was Fac Gar Fac Fac Upp Upp Zhi Pro Res Res Acc Turns Passed 19693 | 112 636 1035 386 699 1047 1357 384 277 1832 1157 1603 772 1470 56 657 1449 719 259 486 349 78 290 1340 856 387 Spaces Moved 19343 | 53 325 538 302 437 386 538 311 306 1570 699 1253 494 1351 70 1149 1202 1438 538 1179 951 204 440 1059 1692 858 Core 8 | 8 . . . . . . . . . . . . . . . . . . . . . . . . . Treads 2179 | 45 325 510 . 25 386 538 5 . 3 342 . . . . . . . . . . . . . . . Legs . | . . . . . . . . . . . . . . . . . . . . . . . . . . Wheels 742 | . . 28 302 412 . . . . . . . . . . . . . . . . . . . . . Hover 7524 | . . . . . . . 306 306 1567 357 1253 494 1351 70 128 1107 . . . . . 186 397 2 . Flight 8890 | . . . . . . . . . . . . . . . 1021 95 1438 538 1179 951 204 254 662 1690 858 Fastest Speed 25 | 50 160 120 120 110 160 200 72 72 72 72 72 72 72 72 30 29 26 26 26 26 26 26 26 30 25 Average Speed 69 | 155 165 170 124 139 195 204 74 72 74 120 75 100 81 72 34 88 26 26 26 26 26 41 42 30 25 Slowest Speed 220 | 160 180 180 150 220 200 220 220 72 160 180 146 142 142 72 72 142 27 26 93 26 26 62 145 125 27 Overloaded Moves 14 | . . . . . . . . . . . . . . . . . . . . . . 14 . . . Propulsion Burnouts . | . . . . . . . . . . . . . . . . . . . . . . . . . . Robots Hopped 59 | . . . . . . . . . . . . . . . 3 . 4 8 . . . . 12 19 13 Cave-ins Triggered . | . . . . . . . . . . . . . . . . . . . . . . . . . . Teleports 1 | . . . . . . . . . . . . . . . . . . . . . . . 1 . . Exploration Rate (%) 51 | 6 50 98 69 90 31 67 7 97 25 79 26 76 26 65 22 83 25 13 91 87 62 51 16 46 23 Regions Visited 25 Branch Regions 7 Pre-discovered Areas 7 | . . . . 1 . . . . . . . . 1 . . . 2 . . . 3 . . . . Known Exits Taken 11 | . . 1 . . 1 . . . 1 . 1 . . . 1 . . . 1 1 1 1 1 1 . Unknown Exits Taken 6 | 1 1 . 1 1 . . . . . . . . . . . . 1 1 . . . . . . . Scrap Searched 8 | . . 3 . 1 . . . . . . . . . . . . . . 2 1 . 1 . . . Spaces Dug 235 | . . 48 . 7 . 5 . . 13 3 13 . 7 . 13 37 11 11 . 22 . 1 12 17 15 Terrain Destroyed 546 | . . 114 . 56 . 27 3 . 20 3 13 . 8 . 23 90 12 11 29 33 . 53 14 21 16 Melee 66 | . . . . . . . . . 13 . 13 . 7 . 11 . 11 11 . . . . . . . Projectile 101 | . . . . . . . 3 . 7 . . . 1 . 3 2 . . . 33 . 1 14 21 16 AOE 378 | . . 114 . 56 . 27 . . . 3 . . . . 9 88 . . 29 . . 52 . . . Terrain Rammed 1 | . . . . . . . . . . . . . . . . . 1 . . . . . . . . Walls Destroyed 1 | . . . . . . . . . . . . . . . . . 1 . . . . . . . . Machines Disabled . | . . . . . . . . . . . . . . . . . . . . . . . . . . Actions | -11 -10 -10 -10 -9 -8 -8 -7 -7 -7 -7 -7 -7 -6 -6 -6 -6 -5 -4 -4 -4 -4 -3 -3 -2 -1 --------- Run | Scr Mat Min Exi Min Mat Gar Fac Was Fac Gar Fac Gar Fac Was Fac Gar Fac Fac Upp Upp Zhi Pro Res Res Acc Total 24568 | 75 373 635 314 495 593 676 454 363 2178 931 1861 723 1658 73 1362 1523 1727 627 1322 1021 222 525 1874 1967 996 Wait 3122 | 6 10 67 . 9 114 26 105 1 483 46 506 51 184 . 132 100 222 60 63 25 . 38 632 149 93 Move 19210 | 52 324 537 301 436 386 537 311 305 1570 698 1253 493 1351 69 1142 1201 1430 522 1178 950 203 439 1034 1655 833 Hop 53 | . . . . . . . . . . . . . . . 3 . 3 7 . . . . 12 17 11 Pick Up 248 | 8 7 4 6 9 13 17 8 15 15 16 10 9 11 . 5 26 7 2 11 . 3 1 28 12 5 Fast Attach 92 | 7 . . . 2 6 2 . . 8 1 2 . 8 . 6 7 4 2 4 . 4 . 8 19 2 Attach 147 | . 1 3 . 8 7 4 8 . 9 7 3 6 4 . 3 8 6 6 7 6 1 4 24 16 6 Detach 65 | . . . . 1 6 1 1 . 6 2 . . . . 3 1 1 4 4 6 1 1 14 10 3 Swap 220 | . 2 1 2 2 4 10 4 6 18 17 15 6 23 1 19 27 7 3 13 1 . 11 20 8 . Drop 253 | . 2 2 5 3 12 12 6 21 21 15 13 6 19 . 16 30 9 1 11 . 3 6 15 16 9 Fire 826 | 2 27 21 . 25 45 65 11 15 33 91 37 60 48 3 17 69 10 3 31 33 7 21 62 64 26 Melee 93 | . . . . . . . . . 15 2 13 . 9 . 16 . 26 12 . . . . . . . Ram 1 | . . . . . . . . . . . . . . . . . 1 . . . . . . . . Kick . | . . . . . . . . . . . . . . . . . . . . . . . . . . Crush . | . . . . . . . . . . . . . . . . . . . . . . . . . . Escape Stasis 228 | . . . . . . 2 . . . 36 9 90 . . . 53 . 5 . . . . 25 . 8 Rewire 6 | . . . . . . . . . . . . 2 1 . . 1 1 . . . . . . 1 . Trap 4 | . . . . . . . . . . . . . . . . . . . . . . 4 . . . Miscellaneous . | . . . . . . . . . . . . . . . . . . . . . . . . . . Route ------- -11/Scrapyard -10/Materials (discovered 2 exits: [*Mat] / [*Min]) -10/Mines (discovered 3 exits: [*Mat x2] / *Exi) -10/Exiles -9/Mines -8/Materials (discovered 2 exits: *Fac / Gar) -8/Garrison (discovered 3 exits: *Fac x3) -7/Factory (discovered 3 exits: Sto / Low x2) -7/Waste -7/Factory (discovered 2 exits: *Fac / Gar) -7/Garrison (discovered 3 exits: *Fac x3) -7/Factory -7/Garrison (discovered 3 exits: *Fac x3) -6/Factory -6/Waste -6/Factory (discovered 2 exits: [*Low] / Gar) -6/Garrison (discovered 3 exits: *Fac x3) -5/Factory (discovered 3 exits: *Fac / Upp x2) -4/Factory (discovered 5 exits: Res x4 / *Upp) -4/Upper Caves -4/Upper Caves (discovered 2 exits: *Res / *Zhi) -4/Zhirov -3/Proximity Caves -3/Research (discovered 3 exits: *Res x3) -2/Research (discovered 5 exits: *Acc x3 / *Qua x2) -1/Access (discovered 2 exits: *Sur / [*Com]) To Epsilon Eridani History --------- Turn | Location | Event 12 | -11/Scrapyard | Discovered new exit (range 15) 113 | -11/Scrapyard | Entered Materials 317 | -10/Materials | Build established: Mutant 468 | -10/Materials | Discovered new exit (range 14) 685 | -10/Materials | Discovered new exit (range 14) 749 | -10/Materials | Entered Mines 1003 | -10/Mines | Identified exit to Exiles 1062 | -10/Mines | Assisted by bots powering up and referring to "LRC-V3" 1274 | -10/Mines | Discovered new exit (range 7) 1301 | -10/Mines | Discovered new exit (range 5) 1678 | -10/Mines | Core integrity fell below 50% 1713 | -10/Mines | Deemed a non-threat by the Exiles lab entrance 1784 | -10/Mines | Entered Exiles 1819 | -10/Exiles | Met 8R-AWN 1837 | -10/Exiles | Met EX-HEX 1873 | -10/Exiles | Met EX-BIN 1887 | -10/Exiles | Aligned with FarCom system 1888 | -10/Exiles | Given EX-Vault access code 1933 | -10/Exiles | Opened EX-Vault 1944 | -10/Exiles | Found Lightpack 2.0 1971 | -10/Exiles | Warned to stay clear of 0b10 Research branches 1984 | -10/Exiles | Exiles lab attacked by MAIN.C 2158 | -10/Exiles | Discovered new exit (range 10) 2170 | -10/Exiles | Left Exiles lab with Lightpack 2.0 2170 | -10/Exiles | Entered Mines 2419 | -9/Mines | Build established: Hauler-Mutant 2458 | -9/Mines | Found a damaged Exp. Sensor Array with a note attached 2462 | -9/Mines | Found Prototype Device 2594 | -9/Mines | Assembled infested the area 2599 | -9/Mines | Assisted by a Guerilla fighting off Assembled 2631 | -9/Mines | Core integrity fell below 20% 2663 | -9/Mines | Lost 3 parts (1n2w) 2667 | -9/Mines | Destroyed 15 combat bots 2695 | -9/Mines | Received a Mining Laser from a helpful Derelict 2769 | -9/Mines | Discovered new exit (range 15) 2825 | -9/Mines | Learned Materials emergency access door positions 2837 | -9/Mines | Lost 5 parts (1p2n2w) 2869 | -9/Mines | Entered Materials 2869 | -8/Materials | Accompanied by 1 ally 2869 | -8/Materials | Evolved 4 slots: Utility x4 2896 | -8/Materials | Identified Exp. Sensor Array 3420 | -8/Materials | Discovered new exit (range 4) 3855 | -8/Materials | Repaired Broken Exp. Sensor Array 3916 | -8/Materials | Identified exit to Garrison 3916 | -8/Materials | Entered Garrison 3994 | -8/Garrison | Triggered checkpoint 4461 | -8/Garrison | Discovered new exit (range 10) 4552 | -8/Garrison | Triggered checkpoint 4597 | -8/Garrison | Discovered new exit (range 9) 4653 | -8/Garrison | Triggered checkpoint 4773 | -8/Garrison | Discovered new exit (range 13) 4809 | -8/Garrison | Installed Relay Interface Framework 4957 | -8/Garrison | Build established: Scavenger-Mutant 4974 | -8/Garrison | Triggered checkpoint 5006 | -8/Garrison | Garrison Relay disabled 5273 | -8/Garrison | Entered Factory 5273 | -7/Factory | Evolved 2 slots: Propulsion x1, Utility x1 5358 | -7/Factory | Identified exit to Storage 5358 | -7/Factory | Identified exit to Lower Caves 5657 | -7/Factory | Sucked down chute 5657 | -7/Factory | Entered Waste 5657 | -7/Waste | The area was eerily silent 5776 | -7/Waste | Found Damper Plating 5889 | -7/Waste | Discovered new exit (range 12) 5934 | -7/Waste | Entered Factory 6057 | -7/Factory | Build established: Hauler-Mutant 6572 | -7/Factory | Discovered new exit (range 15) 7013 | -7/Factory | Repaired Cmb. Airjet 7032 | -7/Factory | Garrison activated, responded to threat 7182 | -7/Factory | Fabricated Cmb. Airjet? 7591 | -7/Factory | Fabricated Cmb. Airjet? 7652 | -7/Factory | Fabricated Cmb. Airjet (x2) 7672 | -7/Factory | Repaired Cmb. Airjet? 7766 | -7/Factory | Identified exit to Garrison 7766 | -7/Factory | Entered Garrison 7865 | -7/Garrison | Triggered checkpoint 7893 | -7/Garrison | Garrison Relay disabled 8046 | -7/Garrison | Triggered checkpoint 8094 | -7/Garrison | Discovered new exit (range 15) 8148 | -7/Garrison | Triggered checkpoint 8196 | -7/Garrison | Triggered checkpoint 8320 | -7/Garrison | Discovered new exit (range 7) 8340 | -7/Garrison | Expanded RIF knowledge: Coupler Efficiency 8392 | -7/Garrison | Triggered checkpoint 8485 | -7/Garrison | Garrison Relay disabled 8650 | -7/Garrison | Build established: Bothacker-Mutant 8778 | -7/Garrison | Triggered checkpoint 8814 | -7/Garrison | Garrison Relay disabled 8891 | -7/Garrison | Discovered new exit (range 14) 8923 | -7/Garrison | Entered Factory 8923 | -7/Factory | Accompanied by 1 ally 9861 | -7/Factory | Repaired Hvy. Treads 10026 | -7/Factory | Local fabrication network quarantined 10033 | -7/Factory | Fabricated Imp. Powered Armor (x1) 10526 | -7/Factory | Identified exit to Garrison 10526 | -7/Factory | Entered Garrison 10530 | -7/Garrison | Expanded RIF knowledge: Signal Jamming 10600 | -7/Garrison | Triggered checkpoint 10673 | -7/Garrison | Discovered new exit (range 12) 10714 | -7/Garrison | Triggered checkpoint 10845 | -7/Garrison | Garrison Relay disabled 10906 | -7/Garrison | Triggered checkpoint 10982 | -7/Garrison | Triggered checkpoint 11047 | -7/Garrison | Garrison Relay disabled 11102 | -7/Garrison | Discovered new exit (range 10) 11226 | -7/Garrison | Triggered checkpoint 11230 | -7/Garrison | Triggered checkpoint 11256 | -7/Garrison | Discovered new exit (range 10) 11298 | -7/Garrison | Entered Factory 11298 | -6/Factory | Accompanied by 4 allies 11298 | -6/Factory | Evolved 2 slots: Utility x2 11335 | -6/Factory | Central database locked down 11679 | -6/Factory | Fabricated Fission Core (x2) 11930 | -6/Factory | Found Prototype Processor 11930 | -6/Factory | Identified Exp. Signal Interpreter 12375 | -6/Factory | Build established: Hauler-Mutant 12483 | -6/Factory | Found Prototype Processor 12483 | -6/Factory | Identified Exp. Targeting Computer 12700 | -6/Factory | Fabricated Imp. Cesium-ion Thruster? 12768 | -6/Factory | Sucked down chute 12768 | -6/Factory | Entered Waste 12774 | -6/Waste | Spotted C-40 Crusher 12776 | -6/Waste | Spotted C-40 Crusher 12793 | -6/Waste | Spotted C-40 Crusher 12795 | -6/Waste | Spotted C-40 Crusher 12813 | -6/Waste | Discovered new exit (range 16) 12814 | -6/Waste | Spotted C-40 Crusher 12824 | -6/Waste | Entered Factory 13043 | -6/Factory | Discovered new exit (range 6) 13226 | -6/Factory | Build established: Hacker-Sprinter 13309 | -6/Factory | Fabricated Imp. Cesium-ion Thruster? 13479 | -6/Factory | Identified exit to Garrison 13481 | -6/Factory | Entered Garrison 13576 | -6/Garrison | Triggered checkpoint 13613 | -6/Garrison | Garrison Relay disabled 13721 | -6/Garrison | Triggered checkpoint 13812 | -6/Garrison | Spotted B-75 Beast 13883 | -6/Garrison | Destroyed B-75 Beast 14181 | -6/Garrison | Build established: Scavenger-Mutant 14259 | -6/Garrison | Discovered new exit (range 15) 14296 | -6/Garrison | Triggered checkpoint 14301 | -6/Garrison | Garrison Relay disabled 14409 | -6/Garrison | Triggered checkpoint 14429 | -6/Garrison | Triggered checkpoint 14500 | -6/Garrison | Triggered checkpoint 14508 | -6/Garrison | Garrison Relay disabled 14538 | -6/Garrison | Discovered new exit (range 8) 14549 | -6/Garrison | Expanded RIF knowledge: Autooverride 14643 | -6/Garrison | Discovered new exit (range 10) 14846 | -6/Garrison | Build established: Bothacker-Mutant 14930 | -6/Garrison | Entered Factory 14930 | -5/Factory | Accompanied by 3 allies 14930 | -5/Factory | Evolved 2 slots: Power x1, Propulsion x1 15180 | -5/Factory | Identified exit to Upper Caves 15344 | -5/Factory | Fabricated Adv. Hacking Suite? 15458 | -5/Factory | Fabricated Adv. Hacking Suite (x1) 15462 | -5/Factory | Discovered new exit (range 16) 15649 | -5/Factory | Entered another Factory area 15649 | -4/Factory | Accompanied by 1 ally 15649 | -4/Factory | Evolved 2 slots: Utility x2 15670 | -4/Factory | Build established: Hacker-Sprinter 15677 | -4/Factory | Identified exit to Research 15888 | -4/Factory | Discovered new exit (range 6) 15908 | -4/Factory | Entered Upper Caves 15941 | -4/Upper Caves | Lost 3 parts (1p2w) 15982 | -4/Upper Caves | Encountered a Warlord checkpoint 16339 | -4/Upper Caves | Learned 8 Research zone layouts 16345 | -4/Upper Caves | Discovered new exit (range 7) 16346 | -4/Upper Caves | Identified exit to Upper Caves 16394 | -4/Upper Caves | Entered another Upper Caves area 16394 | -4/Upper Caves | Accompanied by 1 ally 16395 | -4/Upper Caves | Encountered a Warlord checkpoint 16398 | -4/Upper Caves | Discovered exit to Research (range 14) 16739 | -4/Upper Caves | Discovered new exit (range 14) 16743 | -4/Upper Caves | Identified exit to Zhirov 16743 | -4/Upper Caves | Entered Zhirov 16743 | -4/Zhirov | Discovered new exit (range 3) 16745 | -4/Zhirov | Identified exit to Proximity Caves 16749 | -4/Zhirov | Met Zhirov 16757 | -4/Zhirov | Learned location of Quarantine (-2) 16757 | -4/Zhirov | Learned location of Testing (-3) 16757 | -4/Zhirov | Learned location of Command (-1) 16759 | -4/Zhirov | Zhirov requested help retrieving the SGEMP Prototype 16763 | -4/Zhirov | Found Alien Artifact 16763 | -4/Zhirov | Identified Integrated Reactor 16763 | -4/Zhirov | Installed Integrated Reactor, increased core energy generation (+10) 16770 | -4/Zhirov | Found Alien Artifact 16821 | -4/Zhirov | Entered Proximity Caves 16855 | -3/Proximity Caves | Attracted the attention of an 0b10 outpost 17026 | -3/Proximity Caves | Lost 3 parts (2p1w) 17101 | -3/Proximity Caves | Discovered exit to Research (range 10) 17111 | -3/Proximity Caves | Entered Research 17111 | -3/Research | Evolved 2 slots: Utility x2 17112 | -3/Research | Identified exit to Research 17233 | -3/Research | Build established: Hacker-Mutant 17357 | -3/Research | Identified Transdimensional Reconstructor 17357 | -3/Research | Warped through subspace 17952 | -3/Research | Build established: Hacker-Sprinter 18030 | -3/Research | Lost 5 parts (3u2w) 18280 | -3/Research | Build established: Hauler-Sprinter 18451 | -3/Research | Entered another Research area 18451 | -2/Research | Evolved 2 slots: Utility x2 18452 | -2/Research | Identified exit to Quarantine 18779 | -2/Research | Lost 7 parts (1p5u1w) 19022 | -2/Research | Found Prototype Processor 19022 | -2/Research | Identified Exp. Core Analyzer 19089 | -2/Research | Spotted B-90 Cyclops 19171 | -2/Research | Identified exit to Access 19185 | -2/Research | Spotted B-90 Cyclops 19249 | -2/Research | Discovered exit to Quarantine (range 18) 19307 | -2/Research | Entered Access 19307 | -1/Access | Evolved 2 slots: Propulsion x1, Utility x1 19318 | -1/Access | Identified exit to Surface 19495 | -1/Access | Discovered new exit (range 15) 19526 | -1/Access | Build established: Hacker-Sprinter 19694 | *** | Escaped! Last Messages --------------- >>map_route Extracting route scan data... 19671_ K-01 Serf destroyed. 19673_ Acquired 26 matter. 19674_ K-01 Serf collects debris. 19680_ Penetrated by Slug. 19680_ Slug penetrates Scanalyzer. 19680_ Adv. Remote Datajack destroyed. 19681_ K-01 Serf cleans the Scanalyzer. 19681_ Slug penetrates Wall. 19684_ K-01 Serf cleans the Terminal. 19686_ Connecting with Terminal... 19686_ ALERT: Suspicious activity at Terminal A020. Dispatching Investigation squad. 19687_ K-01 Serf cleans the Terminal. 19690_ Connecting with Terminal... >>Open Sealed Barrier opened. 19691_ The Access Shell folds into the floor. 19692_ Terminal disabled. Map ----- +----------------------------------------------------+ | ?????????????????????????????????????????????????? | | ?????????????????????????????????????????????????? | | ?????????????????????????????????????????????????? | | ?????????????????????????????????????????????????? | | ?????????????????????????????????????????????????? | | ?????????????????????????????????????????????????? | | ?????????????????????????????????????????????????? | | ?????????????????????????????????????????????????? | | ?????????????????????????????????????????????????? | | ?????????????????????????????????????????????????? | | ?????????????????????????????????????????????????? | | ?????????????????????????????????????????????????? | | ??????????????????????????????????????? ?????????? | | ?????????????????????????????????????? #????????? | | ?????????????????????????????????????? #????????? | | ?????????????????????????????????????? +????????? | | ?????????????????????????????????????? #????????? | | ?????????????????????????????????????? #????????? | | ?????????????????????????????????????? #????????? | | ?????????????????????????????###?????? #????????? | | ????????????????????########## ####### #????????? | | ????????????????????" #????????? | | ??????????????BB????" #????????? | | ??????????????BB????" #????????? | | ????????????????????" #????????? | | ????????????????????" "@ #????????? | | ????????????????????" "" #????????? | | ????????????????????" #????????? | | ??????????????BB????" #????????? | | ??????????????BB????" "" """ #????????? | | ????????????????????" """T""" #????????? | | ????????????????????########## ####### #?###?#?## | | ?????????????????????????????###?????# #?? ! | | ?????????????????????????????????????# #?# | | ?????????????????????????????????????# #?# " | | ?????????????????????????????????????# #?# """ | | ?????????????????????????????????????# #?# """ | | ?????????????????????????????????????# #?# " | | ?????????????????????????????????????# #?# | | ????????????????????????????????????## ### | | ???????????????????gp????p???????#### ######+## | | ?????????????????????????????? T" | | ?????????????????????????? Y "" | | ????????????????????????? ####### ##### ## | | ????????????????????????? ??????????##+###???# ## | | ?????????????????????????????????????????????# ## | | ?????????????????????????????????????????????# ## | | ?????????????????????????????????????????????# ## | | ?????????????????????????????????????????????# ## | | ?????????????????????????????????????????????# ## | +----------------------------------------------------+ Best States ------------- Heat Dissipation 80 Energy Generation 51 Energy Capacity 790 Matter Stores 320 Matter Capacity 600 Sight Range 20 Terrain Scan Range 20 Terrain Scan Density 10 Jamming Range 16 Power Amplification 30 Additional Mass Support 24 Armor Coverage 600 Resistance: TH 10 Resistance: EM 15 Propulsion Shielding 90 Utility Shielding 66 Weapon Shielding 90 Evasion (%) 74 Targeting Accuracy 16 Melee Accuracy 8 Armor Integrity Analysis 50 Recoil Reduction 2 Offensive Hacking 40 Defensive Hacking 28 Relay Coupler Types 70 Relay Coupler Value 3 Item Schematics ----------------- Hcp. Storage Unit | -10/Materials | Hacked Lgt. Armor Plating | -10/Materials | Hacked Exp. Sensor Array | -8/Materials | Scanalyzed Fission Core | -8/Materials | Scanalyzed Cmb. Airjet | -7/Factory | Scanalyzed Adv. Weight Redist. System | -6/Factory | Hacked Impulse Thruster | -6/Factory | Hacked Imp. Cesium-ion Thruster | -6/Factory | Scanalyzed Gravity Neutralizing Apparatus | -6/Factory | Scanalyzed Mic. Fission Core | -6/Factory | Scanalyzed Field Propulsion Drive | -6/Factory | Hacked Adv. Hacking Suite | -5/Factory | Hacked Assault Drone Bay | -4/Zhirov | Free Exp. Heat Sink | -4/Zhirov | Free Exp. Optical Array | -4/Zhirov | Free Imp. Arc Thrower | -4/Zhirov | Free Exp. Cesium-ion Thruster | -3/Research | Hacked Enh. Nova Cannon | -2/Research | Scanalyzed Robot Schematics ------------------ None Fabricated ------------ Cmb. Airjet | x2 | -7/Factory Cmb. Airjet | x2 | -7/Factory Cmb. Airjet | x2 | -7/Factory Imp. Powered Armor | x1 | -7/Factory | Preloaded Fission Core | x2 | -6/Factory Imp. Cesium-ion Thruster | x1 | -6/Factory Imp. Cesium-ion Thruster | x1 | -6/Factory Adv. Hacking Suite | x1 | -5/Factory Adv. Hacking Suite | x1 | -5/Factory Alien Tech Used ----------------- Integrated Reactor Transdimensional Reconstructor Achievements -------------- Production Line Challenges ------------ None Game ------ Seed PlasmaFlyingDesublimator Manual? 0 Play Time 06:35:54 Cumulative 167.2 hours Start 2020.10.04 @ 18:44:44 End 2020.10.05 @ 16:44:27 Sessions 5 Manual Loads 0 Difficulty Rogue Special Mode None Game No. 79 Rogue 79 Adventurer 0 Explorer 0 Win Type 0 Total 3 Types 3/0/0/0/0/0/0/0/0 Lore% 46 Gallery% 75 Achievement% 57 Wizard Run 0 Options --------- ASCII 0 Keyboard 0 Movement Numpad Keybinds 0 Fullscreen 1 Font 18/SmallcapsGlow Map View 76x50 Tactical HUD 1 Map Filters NONE Filters NONE Steam 1 RUN: a971f516-7d8a-4810-acae-4b25401cf775